Cogmind - Beta 13 *** ADVENTURER MODE // 2024.07.02 @ 23:51:00 Player: Schmaltz Result: Destroyed by Z-Imprinter with Zionite Laser-M Performance ------------- Evolutions (1) 500 Regions Visited (5) 1000 Robots Destroyed (9) 45 Value Destroyed (162) 162 Prototype IDs (1) 20 Alien Tech Used (0) 0 Bonus (300) 300 TOTAL SCORE: 2027 Bonus ------- Met Imprinter 300 Cogmind --------- Core Integrity 0/400 Matter 253/300 Energy 42/100 System Corruption 0% Temperature Critical (587) Movement Core (50) Location -7/Deep Caves Parts ------- > --- POWER (1) -------- (None) > --- PROPULSION (3) --- (None) > --- UTILITY (3) ------ (None) > --- WEAPON (2) ------- (None) > --- INVENTORY (5) ---- Light Ion Engine Aluminum Leg Aluminum Leg Visual Processing Unit Peak State ------------ > --- POWER ------------ Light Ion Engine > --- PROPULSION ------- Aluminum Leg Aluminum Leg Improved Aluminum Leg > --- UTILITY ---------- Structural Scanner ECM Suite Hacking Drone Bay > --- WEAPON ----------- Beamcaster Light Cannon > --- INVENTORY -------- Light Ion Engine Storm Laser [Rating: 24] Favorites ----------- Power Light Ion Engine Engine Light Ion Engine Propulsion Aluminum Leg Leg Aluminum Leg Utility ECM Suite Device ECM Suite Weapon Light Cannon Energy Gun Beamcaster Ballistic Gun Light Assault Rifle Ballistic Cannon Light Cannon Build | -11 -10 -9 -9 -7 -7 ------- Run | Yrd Mat Mat Min Zio Dee Slots Evolved 2 | . . 2 . . . Power . | . . . . . . Propulsion 1 | . . 1 . . . Utility 1 | . . 1 . . . Weapon . | . . . . . . Parts Attached 17 | 5 5 3 1 3 . Power 2 | 1 1 . . . . Engine 2 | 1 1 . . . . Core . | . . . . . . Reactor . | . . . . . . Propulsion 5 | 2 1 2 . . . Treads . | . . . . . . Leg 5 | 2 1 2 . . . Wheel . | . . . . . . Hover . | . . . . . . Flight . | . . . . . . Utility 4 | . 2 . 1 1 . Device 4 | . 2 . 1 1 . Storage . | . . . . . . Processor . | . . . . . . Hackware . | . . . . . . Protection . | . . . . . . Artifact . | . . . . . . Weapon 6 | 2 1 1 . 2 . Energy Gun 4 | 1 1 . . 2 . Energy Cannon . | . . . . . . Ballistic Gun 1 | 1 . . . . . Ballistic Cannon 1 | . . 1 . . . Launcher . | . . . . . . Special Weapon . | . . . . . . Impact Weapon . | . . . . . . Slashing Weapon . | . . . . . . Piercing Weapon . | . . . . . . Special Melee Weapon . | . . . . . . Unidentified Prototypes 1 | . . . . 1 . Parts Lost 9 | . . . . . 9 Power 1 | . . . . . 1 Propulsion 3 | . . . . . 3 Utility 3 | . . . . . 3 Weapon 2 | . . . . . 2 Highest Loss Streak 9 | . . . . . 9 To Critical Strikes . | . . . . . . Average Slot Usage (%) 96 | . 77 88 95 100 91 Engine 11 | . 14 11 11 11 9 Leg 32 | . 28 33 33 33 29 Device 29 | . 6 22 28 33 31 Energy Gun 11 | . 14 11 11 11 10 Ballistic Gun 1 | . 14 4 . . . Ballistic Cannon 9 | . . 7 11 11 9 Naked Turns 1 | . . . . . 1 Heaviest Build 15 | 6 8 10 11 15 15 Greatest Support 33 | 20 20 33 33 33 33 Greatest Overweight (x) . | . . . . . . Average Overweight (x) . | . . . . . . Largest Inventory Capacity 5 | 5 5 5 5 5 5 Average Capacity 5 | 5 5 5 5 5 5 Most Carried 5 | 4 5 5 5 5 4 Average Carried 4 | 2 3 4 4 4 4 Final Capacity 5 | 5 5 5 5 5 5 Final Carried 5 | 3 4 5 5 4 4 Class Distribution -------------------- 40% | Infiltrator-Mutant 36% | Mutant 23% | Scavenger-Mutant Dominant Class ---------------- Mutant | -10/Materials Mutant | -9/Materials Scavenger-Mutant | -9/Mines Infiltrator-Mutant | -7/Zion Infiltrator-Mutant | -7/Deep Caves Resources | -11 -10 -9 -9 -7 -7 ----------- Run | Yrd Mat Mat Min Zio Dee Matter Collected 392 | 254 54 . 74 10 . Remotely . | . . . . . . Salvage Created 276 | 37 149 . 47 . 43 Parts 18 | 1 8 . 5 . 4 Haulers Intercepted . | . . . . . . Recyclers Shooed . | . . . . . . Parts Field Recycled . | . . . . . . Retrieved Matter . | . . . . . . Parts Self-Destructed 2 | . . . . 2 . Prevented . | . . . . . . Kills | -11 -10 -9 -9 -7 -7 ------- Run | Yrd Mat Mat Min Zio Dee Combat Hostiles Destroyed 9 | 1 6 . 2 . . Guns 8 | 1 6 . 1 . . Cannons 1 | . . . 1 . . Classes Destroyed 3 | 1 1 . . . 1 Swarmer 6 | . 4 . 2 . . Grunt 3 | 1 2 . . . . Z-Technician 4 | . . . . . 4 Best Kill Streak 4 | 1 3 . 2 . 4 Combat Bots Only 3 | 1 3 . 2 . . Max Kills in Single Turn 1 | 1 1 . 1 . 1 Gunslinging . | . . . . . . Exploded . | . . . . . . Melee . | . . . . . . Uniques/NPCs Destroyed . | . . . . . . Combat | -11 -10 -9 -9 -7 -7 -------- Run | Yrd Mat Mat Min Zio Dee Hostile Shots Fired 96 | 5 32 . 10 . 49 Missed 15 | . 6 . 2 . 7 Damage Taken 1357 | 41 153 . 53 . 1110 Core 445 | . 34 . 5 . 406 Absorbed by Shields . | . . . . . . Ignored by Resistances 358 | 13 52 . 16 . 277 Core Remaining (%) 93 | 100 86 . . . . Volleys Fired 42 | 5 16 1 5 . 15 Largest 2 | 2 2 2 2 . 2 Hottest 110 | 70 70 75 75 . 110 Shots Fired 78 | 10 32 2 10 . 24 Gun 63 | 10 32 1 5 . 15 Cannon 15 | . . 1 5 . 9 Launcher . | . . . . . . Special . | . . . . . . Kinetic 36 | 5 16 1 5 . 9 Thermal 42 | 5 16 1 5 . 15 Explosive . | . . . . . . Electromagnetic . | . . . . . . Robot Hit Streak 8 | 3 8 . 5 . 5 Robot Miss Streak 4 | 2 3 2 1 . 4 Penetration Max . | . . . . . . Secondary Targets . | . . . . . . Shots Hit Robots 44 | 4 19 . 7 . 14 Core Hits 20 | 2 9 . 3 . 6 Critical Kills . | . . . . . . Critical Parts Destroyed . | . . . . . . Critical Strikes 1 | . 1 . . . . Burn 1 | . 1 . . . . Melee Attacks . | . . . . . . Impact . | . . . . . . Slashing . | . . . . . . Piercing . | . . . . . . Sneak Attacks . | . . . . . . Combat Hostiles . | . . . . . . Follow-up Attacks . | . . . . . . Damage Inflicted 627 | 48 207 10 90 . 272 Guns 493 | 48 204 10 44 . 187 Cannons 131 | . . . 46 . 85 Explosions . | . . . . . . Melee . | . . . . . . Ramming 3 | . 3 . . . . Kinetic 190 | 10 49 . 46 . 85 Thermal 434 | 38 155 10 44 . 187 Explosive . | . . . . . . Electromagnetic . | . . . . . . Impact . | . . . . . . Slashing . | . . . . . . Piercing . | . . . . . . Highest Corruption . | . . . . . . Average Corruption . | . . . . . . Corruption Purged . | . . . . . . Corruption Blocked . | . . . . . . Overload Shots . | . . . . . . Overflow Damage . | . . . . . . Projectiles . | . . . . . . Explosions . | . . . . . . Melee . | . . . . . . Knockbacks 1 | . . . 1 . . Impact . | . . . . . . Kinetic 1 | . . . 1 . . Secondary . | . . . . . . Self-Inflicted Damage . | . . . . . . Shots . | . . . . . . Rammed . | . . . . . . Targets Rammed 1 | . 1 . . . . Kicked 1 | . 1 . . . . Crushed . | . . . . . . Highest Temperature 626 | 90 120 . . . 626 Average Temperature 148 | 43 58 . . . 239 Received Heat Transfer 408 | 30 . . . . 378 Effects 6 | . . . . . 6 Matter Decay 1 | . . . . . 1 Short Circuit 2 | . . . . . 2 Damage (major) 2 | . . . . . 2 Damage (core) 1 | . . . . . 1 Siege Activations . | . . . . . . Robots Corrupted . | . . . . . . Combat Hostiles . | . . . . . . Parts Fried . | . . . . . . Impact Corruptions . | . . . . . . Robots Melted . | . . . . . . Combat Hostiles . | . . . . . . Parts Melted 3 | . 1 . 1 . 1 Heat Transferred 872 | 111 471 25 100 . 165 Parts Sabotaged . | . . . . . . Parts Stolen . | . . . . . . Parts Stripped . | . . . . . . Power Chain Reactions . | . . . . . . Alert | -11 -10 -9 -9 -7 -7 ------- Run | Yrd Mat Mat Min Zio Dee Peak Influence 160 | 20 160 76 94 . . Initial 57 | . . 57 24 . . Average 27 | 7 66 60 36 . . Maximum Alert Level . | . . . . . . Low Security (%) 100 | 100 100 100 100 . . Level 1 . | . . . . . . Level 2 . | . . . . . . Level 3 . | . . . . . . Level 4 . | . . . . . . Level 5 . | . . . . . . High Security . | . . . . . . Max Security . | . . . . . . Squads Dispatched . | . . . . . . Investigation . | . . . . . . Extermination . | . . . . . . Reinforcement . | . . . . . . Assault . | . . . . . . Garrison . | . . . . . . Intercept . | . . . . . . Searches Triggered . | . . . . . . Construction Impeded . | . . . . . . Haulers Reinforced . | . . . . . . Active Scanning Responses . | . . . . . . Cargo Convoy Interrupts . | . . . . . . Stealth | -11 -10 -9 -9 -7 -7 --------- Run | Yrd Mat Mat Min Zio Dee Distress Signals 1 | . . 1 . . . Communications Jammed . | . . . . . . Distress Signals . | . . . . . . Times Spotted 18 | 1 8 3 3 . 3 Peak Tracking Total 5 | 1 5 3 3 . 3 Tactical Retreats 2 | . 1 . 1 . . Traps | -11 -10 -9 -9 -7 -7 ------- Run | Yrd Mat Mat Min Zio Dee Traps Triggered . | . . . . . . Indirectly . | . . . . . . Trap Hack Attempts . | . . . . . . Triggered . | . . . . . . Disarmed . | . . . . . . Reprogrammed . | . . . . . . Reused . | . . . . . . Traps Extracted . | . . . . . . Installed . | . . . . . . Triggered . | . . . . . . Machines | -11 -10 -9 -9 -7 -7 ---------- Run | Yrd Mat Mat Min Zio Dee Machines Disabled 1 | . . . . . 1 Max in Single Turn . | . . . . . . Machines Repaired . | . . . . . . Machines Dismantled . | . . . . . . Machines Sabotaged . | . . . . . . Overloaded Fab Kills . | . . . . . . Hacking | -11 -10 -9 -9 -7 -7 --------- Run | Yrd Mat Mat Min Zio Dee Machines Accessed 4 | . 3 1 . . . Terminals 4 | . 3 1 . . . Fabricators . | . . . . . . Repair Stations . | . . . . . . Recycling Units . | . . . . . . Scanalyzers . | . . . . . . Garrison Access . | . . . . . . Total Hacks 12 | . 5 7 . . . Successful 10 | . 3 7 . . . Failed 2 | . 2 . . . . Catastrophic . | . . . . . . Database Lockouts . | . . . . . . Manual 16 | . . . . 16 . Terminals 12 | . 5 7 . . . Fabricators . | . . . . . . Repair Stations . | . . . . . . Recycling Units . | . . . . . . Scanalyzers . | . . . . . . Garrison Access . | . . . . . . Terminal Hacks 10 | . 3 7 . . . Record 10 | . 3 7 . . . Fabricator Hacks . | . . . . . . Repair Station Hacks . | . . . . . . Recycling Unit Hacks . | . . . . . . Scanalyzer . | . . . . . . Garrison Access Hacks . | . . . . . . Unauthorized Hacks . | . . . . . . Terminals . | . . . . . . Fabricators . | . . . . . . Repair Stations . | . . . . . . Recycling Units . | . . . . . . Scanalyzers . | . . . . . . Garrison Access . | . . . . . . Data Cores Recovered . | . . . . . . Used . | . . . . . . Hacking Detections 3 | . 2 1 . . . Full Trace Events . | . . . . . . Feedback Events . | . . . . . . Feedback Blocked . | . . . . . . Robot Schematics Acquired 3 | . . . . 3 . Robots Built . | . . . . . . Authchips . | . . . . . . Time . | . . . . . . Total Robot Build Rating . | . . . . . . Part Schematics Acquired 14 | . . . . 14 . Parts Built . | . . . . . . Authchips . | . . . . . . Time . | . . . . . . Total Part Build Rating . | . . . . . . Parts Repaired . | . . . . . . Time . | . . . . . . Parts Recycled . | . . . . . . Recycled Matter . | . . . . . . Retrieved Matter . | . . . . . . Retrieved Components . | . . . . . . Parts Scanalyzed . | . . . . . . Part Schematics Acquired . | . . . . . . Parts Damaged . | . . . . . . Bothacking | -11 -10 -9 -9 -7 -7 ------------ Run | Yrd Mat Mat Min Zio Dee Used RIF Installer . | . . . . . . Robots Hacked . | . . . . . . Non-combat . | . . . . . . Combat . | . . . . . . Robot Hacks Applied . | . . . . . . Relay Couplers Released . | . . . . . . Fabnet Peak Effective % . | . . . . . . Robots Rewired . | . . . . . . Allies Hacked . | . . . . . . Hacks Repelled . | . . . . . . Allies | -11 -10 -9 -9 -7 -7 -------- Run | Yrd Mat Mat Min Zio Dee Total Allies 2 | . . . . 2 . Largest Group 2 | . . . . 2 2 Highest-Rated Group 64 | . . . . 64 64 Highest-Rated Ally 39 | . . . . 39 39 Total Orders . | . . . . . . Ally Attacks 14 | . . . . . 14 Total Damage 156 | . . . . . 156 Kills 1 | . . . . . 1 Allies Corrupted . | . . . . . . Allies Melted . | . . . . . . Intel | -11 -10 -9 -9 -7 -7 ------- Run | Yrd Mat Mat Min Zio Dee Robot Analysis Total . | . . . . . . Derelict Logs Recovered 1 | . . . 1 . . Drone Launches . | . . . . . . Drone Recoveries . | . . . . . . Exploration | -11 -10 -9 -9 -7 -7 ------------- Run | Yrd Mat Mat Min Zio Dee Turns Passed 3601 | 823 256 119 251 1975 177 Spaces Moved 2799 | 659 162 88 194 1581 115 Core 26 | 20 . . . . 6 Treads . | . . . . . . Legs 2773 | 639 162 88 194 1581 109 Wheels . | . . . . . . Hover . | . . . . . . Flight . | . . . . . . Fastest Speed 50 | 50 120 120 120 120 50 Average Speed 119 | 117 120 120 120 120 116 Slowest Speed 120 | 120 120 120 120 120 120 Overloaded Moves . | . . . . . . Propulsion Burnouts . | . . . . . . Robots Hopped . | . . . . . . Cave-ins Triggered . | . . . . . . Exploration Rate (%) 35 | 22 25 12 45 87 24 Regions Visited 5 Branch Regions 3 Pre-discovered Areas 2 | . . . 1 1 . Known Exits Taken . | . . . . . . Unknown Exits Taken 5 | 1 1 1 1 1 . Scrap Searched 3 | . . . 1 2 . Spaces Dug . | . . . . . . Terrain Destroyed . | . . . . . . Melee . | . . . . . . Projectile . | . . . . . . AOE . | . . . . . . Terrain Rammed . | . . . . . . Walls Destroyed . | . . . . . . Machines Disabled . | . . . . . . Actions | -11 -10 -9 -9 -7 -7 --------- Run | Yrd Mat Mat Min Zio Dee Total 2989 | 696 196 98 202 1663 134 Wait 96 | 20 4 5 1 62 4 Move 2794 | 658 161 87 193 1580 115 Hop . | . . . . . . Pick Up 24 | 8 5 2 1 8 . Fast Attach 1 | . . . 1 . . Attach 9 | 5 2 1 . 1 . Detach . | . . . . . . Swap 7 | . 3 2 . 2 . Drop 15 | . 4 . 1 10 . Fire 42 | 5 16 1 5 . 15 Melee . | . . . . . . Ram . | . . . . . . Kick 1 | . 1 . . . . Crush . | . . . . . . Escape Stasis . | . . . . . . Rewire . | . . . . . . Trap . | . . . . . . Miscellaneous . | . . . . . . Route ------- -11/Scrapyard -10/Materials -9/Materials -9/Mines -7/Zion -7/Deep Caves History --------- Turn | Location | Event 2 | -11/Scrapyard | Met Revision 17 66 | -11/Scrapyard | Discovered new exit (range 8) 824 | -11/Scrapyard | Entered Materials 825 | -10/Materials | Build established: Mutant 1003 | -10/Materials | Discovered new exit (range 16) 1080 | -10/Materials | Entered another Materials area 1080 | -9/Materials | Evolved 2 slots: Propulsion x1, Utility x1 1184 | -9/Materials | Discovered new exit (range 5) 1199 | -9/Materials | Entered Mines 1354 | -9/Mines | Learned location of Storage (-7) 1421 | -9/Mines | A Derelict revealed a hidden shortcut to a safe place 1431 | -9/Mines | Assembled infested the area 1436 | -9/Mines | Assisted by a Guerilla fighting off Assembled 1450 | -9/Mines | Entered Zion 1592 | -7/Zion | Build established: Scavenger-Mutant 1623 | -7/Zion | Found CR-A16's Pointy Stick 1969 | -7/Zion | Given the Hacking Drone Bay 1969 | -7/Zion | Found Prototype Device 2028 | -7/Zion | Learned location of Quarantine (-3) 2437 | -7/Zion | Build established: Infiltrator-Mutant 2544 | -7/Zion | Gained Derelict followers 2622 | -7/Zion | Acquired unknown access codes intercepted by a Zionite 2811 | -7/Zion | Identified Hacking Drone Bay 2814 | -7/Zion | Found Prototype Energy Gun 3393 | -7/Zion | Opened final containment barrier to the Deep Caves 3411 | -7/Zion | Discovered new exit (range 3) 3411 | -7/Zion | Saw the warning signs outside the Deep Caves entrance 3425 | -7/Zion | Entered Deep Caves 3425 | -7/Deep Caves | Accompanied by 2 allies 3542 | -7/Deep Caves | Z-Facility disabled 3572 | -7/Deep Caves | Attacked by Z-Imprinter 3596 | -7/Deep Caves | Core integrity fell below 50% 3599 | -7/Deep Caves | Core integrity fell below 20% 3602 | -7/Deep Caves | Destroyed by Z-Imprinter with Zionite Laser-M Last Messages --------------- you ruin everything! 03574_ NO-Z59(l) sneak attacks. 03582_ ECM Suite destroyed. 03585_ Lgt. Ion Engine destroyed. 03585_ Aluminum Leg destroyed. 03587_ Lgt. Cannon destroyed. 03589_ Aluminum Leg destroyed. 03591_ Imp. Aluminum Leg destroyed. 03594_ Structural Scanner broken. 03594_ Overheating: Short circuit. 03595_ Overheating: Core damaged (-56). 03595_ Broken Structural Scanner destroyed. 03597_ Overheating: Hacking Drone Bay damaged (-31). 03597_ Overheating: Beamcaster damaged (-11). 03599_ Beamcaster broken. 03599_ Overheating: Short circuit. 03599_ Broken Beamcaster destroyed. 03600_ Overheating: Matter decay (-36). 03601_ Hacking Drone Bay destroyed. Map ----- +----------------------------------------------------+ | | | | | | | | | | | | | | | ?????????????????????????????????????????????????? | | ?????????????????????????????????????????????????? | | ?????????????????????????????????????????????????? | | ?????????????????????????????#######?????????????? | | ?????????????????????# #???##########????????????? | | ??????????????????## # ####### ##????????????? | | ???????????????? ##### #????????????? | | ?????????????? #????????????? | | ????????????? #???????????## | | ??????????? ##??????????### | | ??????????? ###?????????### | | ??????????"" ############## | | ??????????"" ##;########## | | ????????"""" | | ????????"""" | | ????????" | | ????????"""" z % ########## | | ??????""""" Ilz ########### | | ?????""""""" @ #####??### | | ?????"""""" ###????## | | ????"""%" " ###????## | | ????""%"%%% ##????### | | ????"""%/ ##????#### | | ????"""=%% *! ##?????#### | | ????""""* ]%= ###??????### | | ?????""""" ! ###?????#### | | ??????"""" "%= ##????#### | | ???"" % ##????### | | ???"" """ ###????## | | ???"" """"" ####????## # | | ???????"""""" ###?????## # | | ???????"""""" ##?????### | | ???????"""""" ##????#### | | ????????"""" ##?????### | | ??????????? ###??????### | | ?????????? ##???????#### | | ??????????? ??????????????#### | | ?????????? ?????????????????### | | ??????????? ?????????????????????## | | ??????????? ?????????????????????????### | | ??????????? ????????????????????????????### | | ???????????? ???????????????????????????????## | | ?????????????????????????????????????????????????? | +----------------------------------------------------+ Best States ------------- Heat Dissipation 38 Energy Generation 10 Energy Capacity 125 Matter Stores 300 Matter Capacity 300 Sight Range 16 Terrain Scan Density 10 ECM Strength 1 Resistance: KI 20 Resistance: TH 20 Resistance: EX 20 Resistance: EM 20 Resistance: I 20 Resistance: S 20 Resistance: P 20 Evasion (%) 55 Offensive Hacking 10 Item Schematics ----------------- Imp. Plasma Cutter | -7/Zion | Archive Matter Filter | -7/Zion | Archive Flexi-carbon Leg | -7/Zion | Archive Kinecellerator | -7/Zion | Archive Cloaking Device | -7/Zion | Archive Imp. Carbon-fiber Leg | -7/Zion | Archive Lgt. Fission Core | -7/Zion | Archive Dynamic Insulation System | -7/Zion | Archive Enh. Optical Array | -7/Zion | Archive Adv. Assault Cannon | -7/Zion | Archive KE Penetrator | -7/Zion | Archive Mak. Hacking Suite | -7/Zion | Archive Mak. Hammer | -7/Zion | Archive Adv. Heat Sink | -7/Zion | Archive Robot Schematics ------------------ B-48 Gladiator | -7/Zion | Archive H-55 Commando | -7/Zion | Archive K-01 Serf | -7/Zion | Archive Fabricated ------------ Nothing Alien Tech Used ----------------- None Achievements -------------- Adventurer Risk Taker Robot Respite Signs Are For Wimps Challenges ------------ None Game ------ Seed ThrowingSwordInjector Manual? 0 Play Time 00:47:40 Cumulative 2.2 hours Start 2024.07.02 @ 22:51:45 End 2024.07.02 @ 23:51:00 Sessions 1 Manual Loads 0 Difficulty Adventurer Special Mode None Game No. 2 Rogue 1 Adventurer 1 Explorer 0 Win Type - Total 0 Types 0/0/0/0/0/0/0/0/0 Lore% 9 Gallery% 4 Achievement% 7 Wizard Run 0 Options --------- Layout 1 ASCII 0 Keyboard 0 Movement Mouse Keybinds 0 Fullscreen 1 Font 16/SmallcapsGlow Map View 50x40 Zoom Use 2% Tactical HUD 1 Map Filters NONE Filters NONE Steam SD RUN: f26f2332-6e21-4575-8afe-0a46b420048b